Cogmind - Beta 13 @@@ ROGUE MODE // 2024.05.08 @ 19:47:13 Player: mewcatx Result: Destroyed by EX-DEC with AWS/EX-DEC Performance ------------- Evolutions (0) 0 Regions Visited (3) 600 Robots Destroyed (29) 145 Value Destroyed (547) 547 Prototype IDs (28) 560 Alien Tech Used (0) 0 Bonus (300) 300 TOTAL SCORE: 2152 Bonus ------- Aligned with FarCom 300 Cogmind --------- Core Integrity 0/250 Matter 191/300 Energy 125/125 System Corruption 4% Temperature Cool (0) Movement Rolling (140) Ox4 Location -10/Exiles Parts ------- > --- POWER (1) -------- Light Ion Engine > --- PROPULSION (2) --- Wheel Wheel > --- UTILITY (2) ------ Heat Sink Huge Storage Unit > --- WEAPON (2) ------- (None) > --- INVENTORY (25) --- Light Ion Engine Flight Unit Flight Unit Flight Unit Flight Unit Flight Unit Medium Matter Pod (0) Structural Scanner Machine Analyzer Signal Interpreter Hacking Suite Medium Laser Small Laser Latent Energy Streamer Light Assault Rifle Light Assault Rifle Light Assault Rifle Grenade Launcher Rocket Launcher Peak State ------------ > --- POWER ------------ Light Ion Engine > --- PROPULSION ------- Wheel Compact Wheel > --- UTILITY ---------- Heat Sink Huge Storage Unit > --- WEAPON ----------- Beam Cannon Rocket Launcher > --- INVENTORY -------- Light Ion Engine Wheel Flight Unit Flight Unit Flight Unit Flight Unit Flight Unit Medium Matter Pod Structural Scanner Machine Analyzer Signal Interpreter Hacking Suite Medium Laser Small Laser Light Assault Rifle Light Assault Rifle Light Assault Rifle Grenade Launcher [Rating: 10] Favorites ----------- Power Light Ion Engine Engine Light Ion Engine Propulsion Compact Wheel Treads Light Treads Wheel Compact Wheel Utility Huge Storage Unit Device Structural Scanner Storage Huge Storage Unit Weapon Beam Cannon Energy Gun Medium Laser Energy Cannon Beam Cannon Ballistic Gun Assault Rifle Launcher Grenade Launcher Build | -11 -10 -10 -10 ------- Run | Yrd Mat Min Exi Slots Evolved . | . . . . Power . | . . . . Propulsion . | . . . . Utility . | . . . . Weapon . | . . . . Parts Attached 31 | 9 14 8 . Power 3 | 1 1 1 . Engine 3 | 1 1 1 . Core . | . . . . Reactor . | . . . . Propulsion 10 | 4 4 2 . Treads 2 | 2 . . . Leg . | . . . . Wheel 8 | 2 4 2 . Hover . | . . . . Flight . | . . . . Utility 6 | 1 4 1 . Device 4 | . 3 1 . Storage 2 | 1 1 . . Processor . | . . . . Hackware . | . . . . Protection . | . . . . Artifact . | . . . . Weapon 12 | 3 5 4 . Energy Gun 5 | 2 1 2 . Energy Cannon 2 | . 2 . . Ballistic Gun 1 | 1 . . . Ballistic Cannon . | . . . . Launcher 4 | . 2 2 . Special Weapon . | . . . . Impact Weapon . | . . . . Slashing Weapon . | . . . . Piercing Weapon . | . . . . Special Melee Weapon . | . . . . Unidentified Prototypes . | . . . . Parts Lost 5 | . 2 2 1 Power 1 | . . 1 . Propulsion 2 | . 1 1 . Utility 1 | . 1 . . Weapon 1 | . . . 1 Highest Loss Streak 1 | . 1 1 1 To Critical Strikes . | . . . . Average Slot Usage (%) 97 | . 98 100 84 Engine 14 | . 14 14 14 Treads 6 | . 11 . . Wheel 21 | . 16 28 28 Device 13 | . 12 14 14 Storage 14 | . 14 14 14 Energy Gun 8 | . 8 10 . Energy Cannon 10 | . 7 14 13 Ballistic Gun 3 | . 6 . . Launcher 4 | . 5 3 . Naked Turns . | . . . . Heaviest Build 91 | 12 89 91 87 Greatest Support 40 | 40 40 32 20 Greatest Overweight (x) 4 | . 3 4 4 Average Overweight (x) 2 | . 2 2 4 Largest Inventory Capacity 25 | 8 25 25 25 Average Capacity 22 | 6 22 25 25 Most Carried 19 | 4 11 18 19 Average Carried 11 | 2 8 15 18 Final Capacity 25 | 8 25 25 25 Final Carried 19 | 4 10 17 19 Class Distribution -------------------- 100% | Mutant Dominant Class ---------------- Mutant | -10/Materials Mutant | -10/Mines Mutant | -10/Exiles Resources | -11 -10 -10 -10 ----------- Run | Yrd Mat Min Exi Matter Collected 702 | 206 135 358 3 Remotely . | . . . . Salvage Created 494 | . 213 281 . Parts 48 | . 31 17 . Haulers Intercepted . | . . . . Recyclers Shooed . | . . . . Parts Field Recycled . | . . . . Retrieved Matter . | . . . . Parts Self-Destructed . | . . . . Prevented . | . . . . Kills | -11 -10 -10 -10 ------- Run | Yrd Mat Min Exi Combat Hostiles Destroyed 20 | . 10 10 . Guns 5 | . 2 3 . Cannons 1 | . . 1 . AOE 13 | . 8 5 . Classes Destroyed 6 | . 6 . . Worker 5 | . 2 3 . Mechanic 1 | . 1 . . Operator 1 | . 1 . . Watcher 2 | . 2 . . Swarmer 12 | . 6 6 . Grunt 8 | . 4 4 . Best Kill Streak 5 | . 5 3 . Combat Bots Only 3 | . 3 3 . Max Kills in Single Turn 3 | . 3 2 . Gunslinging . | . . . . Exploded 3 | . 3 2 . Melee . | . . . . Uniques/NPCs Destroyed . | . . . . Combat | -11 -10 -10 -10 -------- Run | Yrd Mat Min Exi Hostile Shots Fired 83 | . 44 29 10 Missed 18 | . 12 4 2 Damage Taken 1019 | . 496 307 216 Core 251 | . 73 64 114 Absorbed by Shields . | . . . . Regen/Repaired (Parts) 49 | . 49 . . Core Remaining (%) 100 | 100 . . . Volleys Fired 45 | . 23 22 . Largest 2 | . 2 2 . Hottest 110 | . 110 110 . Shots Fired 94 | . 48 45 1 Gun 43 | . 24 19 . Cannon 34 | . 11 22 1 Launcher 17 | . 13 4 . Special . | . . . . Kinetic 14 | . 14 . . Thermal 63 | . 21 41 1 Explosive 17 | . 13 4 . Electromagnetic . | . . . . Robot Hit Streak 10 | . 7 10 1 Robot Miss Streak 3 | . 3 2 . Penetration Max . | . . . . Secondary Targets . | . . . . Shots Hit Robots 48 | . 25 22 1 Core Hits 38 | . 21 17 . Critical Kills . | . . . . Critical Parts Destroyed . | . . . . Critical Strikes 1 | . . 1 . Burn 1 | . . 1 . Melee Attacks . | . . . . Impact . | . . . . Slashing . | . . . . Piercing . | . . . . Sneak Attacks . | . . . . Combat Hostiles . | . . . . Follow-up Attacks . | . . . . Damage Inflicted 1815 | . 1073 724 18 Guns 338 | . 162 176 . Cannons 321 | . 142 161 18 Explosions 1121 | . 734 387 . Melee . | . . . . Ramming 35 | . 35 . . Kinetic 125 | . 125 . . Thermal 699 | . 344 337 18 Explosive 956 | . 569 387 . Electromagnetic . | . . . . Impact . | . . . . Slashing . | . . . . Piercing . | . . . . Highest Corruption 4 | . 4 4 4 Average Corruption 3 | . 3 4 4 Corruption Purged . | . . . . Corruption Blocked . | . . . . Effects 65 | . 33 25 7 Message Errors 17 | . 10 6 1 Matter Fused 16 | . 7 5 4 Heat Flow Errors 6 | . 4 2 . Energy Discharges 4 | . 1 3 . Parts Rejected 3 | . 3 . . Parts Fused 1 | . . 1 . Data Loss (minor) 9 | . 4 5 . Data Loss (major) 3 | . 1 1 1 Misfires 5 | . 3 1 1 Alerts 1 | . . 1 . Overload Shots . | . . . . Overflow Damage 84 | . 78 6 . Projectiles 12 | . 12 . . Explosions 72 | . 66 6 . Melee . | . . . . Knockbacks . | . . . . Impact . | . . . . Kinetic . | . . . . Secondary . | . . . . Self-Inflicted Damage 173 | . 173 . . Shots 8 | . 8 . . Rammed 2 | . 2 . . Targets Rammed 2 | . 2 . . Kicked . | . . . . Crushed . | . . . . Highest Temperature 261 | . 197 261 . Average Temperature 60 | . 43 79 . Received Heat Transfer 264 | . 96 168 . Siege Activations . | . . . . Robots Corrupted . | . . . . Combat Hostiles . | . . . . Parts Fried . | . . . . Impact Corruptions . | . . . . Robots Melted 1 | . . 1 . Combat Hostiles 1 | . . 1 . Parts Melted 3 | . . 3 . Heat Transferred 1432 | . 507 888 37 Parts Sabotaged . | . . . . Parts Stolen . | . . . . Parts Stripped . | . . . . Power Chain Reactions . | . . . . Alert | -11 -10 -10 -10 ------- Run | Yrd Mat Min Exi Peak Influence 257 | . 257 207 . Initial 1 | . . 1 . Average 71 | . 78 63 . Maximum Alert Level 1 | . 1 1 . Low Security (%) 91 | 100 89 95 . Level 1 8 | . 10 4 . Level 2 . | . . . . Level 3 . | . . . . Level 4 . | . . . . Level 5 . | . . . . High Security . | . . . . Max Security . | . . . . Squads Dispatched 1 | . 1 . . Investigation . | . . . . Extermination . | . . . . Reinforcement 1 | . 1 . . Assault . | . . . . Garrison . | . . . . Intercept . | . . . . Searches Triggered . | . . . . Construction Impeded . | . . . . Haulers Reinforced . | . . . . Active Scanning Responses . | . . . . Cargo Convoy Interrupts . | . . . . Stealth | -11 -10 -10 -10 --------- Run | Yrd Mat Min Exi Distress Signals 1 | . 1 . . Communications Jammed . | . . . . Distress Signals . | . . . . Times Spotted 34 | . 22 9 3 Peak Tracking Total 12 | . 3 2 12 Tactical Retreats 1 | . . . 1 Traps | -11 -10 -10 -10 ------- Run | Yrd Mat Min Exi Traps Triggered 3 | . 3 . . Indirectly . | . . . . Trap Hack Attempts . | . . . . Triggered . | . . . . Disarmed . | . . . . Reprogrammed . | . . . . Reused . | . . . . Traps Extracted . | . . . . Installed . | . . . . Triggered . | . . . . Machines | -11 -10 -10 -10 ---------- Run | Yrd Mat Min Exi Machines Disabled 5 | . 5 . . Max in Single Turn 2 | . 2 . . Machines Repaired . | . . . . Machines Dismantled . | . . . . Machines Sabotaged . | . . . . Overloaded Fab Kills . | . . . . Hacking | -11 -10 -10 -10 --------- Run | Yrd Mat Min Exi Machines Accessed 10 | . 8 . 2 Terminals 5 | . 5 . . Fabricators . | . . . . Repair Stations 1 | . 1 . . Recycling Units 2 | . 2 . . Scanalyzers . | . . . . Garrison Access . | . . . . Total Hacks 21 | . 19 . 2 Successful 14 | . 12 . 2 Failed 7 | . 7 . . Catastrophic 2 | . 2 . . Database Lockouts . | . . . . Manual 15 | . 14 . 1 Terminals 12 | . 12 . . Fabricators . | . . . . Repair Stations 4 | . 4 . . Recycling Units 3 | . 3 . . Scanalyzers . | . . . . Garrison Access . | . . . . Terminal Hacks 9 | . 7 . 2 Record 1 | . . . 1 Robot Analysis 3 | . 3 . . Prototype ID Bank 3 | . 3 . . Unreport Threat 1 | . 1 . . Derelict Proto ID Bank 1 | . . . 1 Fabricator Hacks . | . . . . Repair Station Hacks 3 | . 3 . . Scan Component 2 | . 2 . . Repair 1 | . 1 . . Recycling Unit Hacks . | . . . . Scanalyzer . | . . . . Garrison Access Hacks . | . . . . Unauthorized Hacks 2 | . 2 . . Terminals . | . . . . Fabricators . | . . . . Repair Stations . | . . . . Recycling Units 2 | . 2 . . Mask 2 | . 2 . . Scanalyzers . | . . . . Garrison Access . | . . . . Data Cores Recovered . | . . . . Used . | . . . . Hacking Detections 6 | . 6 . . Full Trace Events . | . . . . Feedback Events . | . . . . Feedback Blocked . | . . . . Robot Schematics Acquired . | . . . . Robots Built . | . . . . Authchips . | . . . . Time . | . . . . Total Robot Build Rating . | . . . . Part Schematics Acquired . | . . . . Parts Built . | . . . . Authchips . | . . . . Time . | . . . . Total Part Build Rating . | . . . . Parts Repaired 1 | . 1 . . Time 26 | . 26 . . Parts Recycled . | . . . . Recycled Matter . | . . . . Retrieved Matter . | . . . . Retrieved Components . | . . . . Parts Scanalyzed . | . . . . Part Schematics Acquired . | . . . . Parts Damaged . | . . . . Bothacking | -11 -10 -10 -10 ------------ Run | Yrd Mat Min Exi Used RIF Installer . | . . . . Robots Hacked . | . . . . Non-combat . | . . . . Combat . | . . . . Robot Hacks Applied . | . . . . Relay Couplers Released . | . . . . Fabnet Peak Effective % . | . . . . Robots Rewired . | . . . . Allies Hacked . | . . . . Hacks Repelled . | . . . . Allies | -11 -10 -10 -10 -------- Run | Yrd Mat Min Exi Total Allies . | . . . . Largest Group . | . . . . Highest-Rated Group . | . . . . Highest-Rated Ally . | . . . . Total Orders . | . . . . Ally Attacks . | . . . . Total Damage . | . . . . Kills . | . . . . Allies Corrupted . | . . . . Allies Melted . | . . . . Intel | -11 -10 -10 -10 ------- Run | Yrd Mat Min Exi Robot Analysis Total 2 | . 2 . . Derelict Logs Recovered 1 | . . 1 . Drone Launches . | . . . . Drone Recoveries . | . . . . Exploration | -11 -10 -10 -10 ------------- Run | Yrd Mat Min Exi Turns Passed 3279 | 85 1799 1057 338 Spaces Moved 1978 | 56 975 707 240 Core 5 | 5 . . . Treads 334 | 28 306 . . Legs . | . . . . Wheels 1639 | 23 669 707 240 Hover . | . . . . Flight . | . . . . Fastest Speed 50 | 50 130 130 140 Average Speed 149 | 121 163 134 140 Slowest Speed 320 | 160 320 140 140 Overloaded Moves . | . . . . Propulsion Burnouts . | . . . . Robots Hopped . | . . . . Cave-ins Triggered . | . . . . Exploration Rate (%) 63 | 4 98 96 57 Regions Visited 3 Branch Regions 2 Pre-discovered Areas 1 | . . . 1 Known Exits Taken . | . . . . Unknown Exits Taken 3 | 1 1 1 . Scrap Searched 1 | . . 1 . Spaces Dug 8 | . 8 . . Terrain Destroyed 125 | . 91 34 . Melee . | . . . . Projectile . | . . . . AOE 125 | . 91 34 . Terrain Rammed . | . . . . Walls Destroyed . | . . . . Machines Disabled . | . . . . Actions | -11 -10 -10 -10 --------- Run | Yrd Mat Min Exi Total 2208 | 68 1131 767 242 Wait 116 | . 95 21 . Move 1975 | 55 974 706 240 Hop . | . . . . Pick Up 29 | 4 15 9 1 Fast Attach 11 | 6 4 1 . Attach 7 | . 5 2 . Detach 2 | . 1 . 1 Swap 13 | 3 5 5 . Drop 8 | . 7 1 . Fire 45 | . 23 22 . Melee . | . . . . Ram 1 | . 1 . . Kick . | . . . . Crush 1 | . 1 . . Escape Stasis . | . . . . Rewire . | . . . . Trap . | . . . . Miscellaneous . | . . . . Route ------- -11/Scrapyard -10/Materials (discovered 5 exits: [*Mat x3] / [*Min] / [Sub]) -10/Mines (discovered 3 exits: [*Mat x2] / *Exi) -10/Exiles History --------- Turn | Location | Event 11 | -11/Scrapyard | Discovered new exit (range 16) 86 | -11/Scrapyard | Entered Materials 320 | -10/Materials | Build established: Mutant 620 | -10/Materials | Discovered new exit (range 12) 909 | -10/Materials | Discovered new exit (range 16) 1033 | -10/Materials | Discovered new exit (range 16) 1283 | -10/Materials | Discovered new exit (range 16) 1321 | -10/Materials | Discovered new exit (range 16) 1832 | -10/Materials | Repaired Grenade Launcher 1885 | -10/Materials | Entered Mines 2217 | -10/Mines | Discovered new exit (range 15) 2276 | -10/Mines | Discovered new exit (range 11) 2485 | -10/Mines | Received a Rocket Launcher from a helpful Derelict 2735 | -10/Mines | Learned Materials security intel 2744 | -10/Mines | Core integrity fell below 50% 2936 | -10/Mines | Deemed a non-threat by the Exiles lab entrance 2936 | -10/Mines | Discovered new exit (range 5) 2942 | -10/Mines | Entered Exiles 2977 | -10/Exiles | Met 8R-AWN 3002 | -10/Exiles | Met EX-HEX 3040 | -10/Exiles | Met EX-BIN 3119 | -10/Exiles | Aligned with FarCom system 3121 | -10/Exiles | Given EX-Vault access code 3157 | -10/Exiles | Opened EX-Vault 3168 | -10/Exiles | Found Latent Energy Streamer 3197 | -10/Exiles | Warned to stay clear of 0b10 Research branches 3237 | -10/Exiles | Met EX-DEC 3245 | -10/Exiles | Learned location of Zion (-7) 3276 | -10/Exiles | Attacked by the Exiles 3280 | -10/Exiles | Core integrity fell below 20% 3280 | -10/Exiles | Destroyed by EX-DEC with AWS/EX-DEC Last Messages --------------- 03239_ EX-DEC: "Oops, I hope HEX didn't hear that..." 03245_ Connecting with EX-Message Board... >>Record "MSG001714-01*" PINNED - TO ALL TESTERS: Stay away from Zion. Imprinter means us harm and is serious about it. World map updated: -7/Zion. 03276_ System corrupted: FCS attempts to trigger Beam Cannon. 03276_ System corrupted: Beam Cannon misfires. 03276_ EXILES: Hostile robot within lab perimeter. Defensive protocols time, folks! 03278_ EX-DEC: "Let's see what this bad boy can do..." 03278_ EX-DEC deploys DAS Turret. 03278_ Beam Cannon destroyed. 03278_ Knocked back. 03279_ Acquired 3 matter. 03279_ Knocked back. Map ----- +----------------------------------------------------+ | ?????????#?????????????" "?????????##" ####### | | ????????? ????????????# #????????##"" #?????? | | ???????? #####????### ###?######"" #?????? | | ??????? """#####X# #"###""""""" ##????? | | ??????? """""" " "" ##???# | | ???????# "" """ " ##### | | ????????# " " | | ????????### | | ??????????### | | ????????????## | | ?????????????## | | ??????????????##" | | ???????????????#""" """""" | | ??????????????##" ######""" | | ??????????????#"" ""##????#####""" | | ?????????????##""" """##?????????##""" | | ?????????????#""" """##???????????#"""" | | ?????????????#""" ""#????????????#"" | | ?????????????#"" ###??###???????""" | | ?????????????#""" ##aaa##?????? | | ?????????????#"" t "?????? | | ?????????????##"" ???? | | ??????????????#"""" % z ???? | | ??????????????## c ????? | | ???????????????#" " ???????? | | ???????????????#"""" @ ""#???????????" | | ???????????????#"" ""##????????????? | | ???????????????#" """"##?????????????? | | ???????????????#""" """#??????????????? | | ???????????????## ""#???????????????? | | ????????????????#"" """##???????????????? | | ????????????????##""" ##????????????????? | | ?????????????????##"""" ##?????????????????? | | ??????????????????### #??????????????????? | | ????????????????????##### ##??????????????????? | | ?????????????????????????# #???????????????????? | | ?????????????????????????? #???????????????????? | | ?????????????????????????? #???????????????????? | | ?????????????????????????? #???????????????????? | | ?????????????????????????? #???????????????????? | | ?????????????????????????? ????????????????????? | | ?????????????????????????????????????????????????? | | ?????????????????????????????????????????????????? | | ?????????????????????????????????????????????????? | | ?????????????????????????????????????????????????? | | ?????????????????????????????????????????????????? | | ?????????????????????????????????????????????????? | | ?????????????????????????????????????????????????? | | ?????????????????????????????????????????????????? | | ?????????????????????????????????????????????????? | +----------------------------------------------------+ Best States ------------- Heat Dissipation 35 Energy Generation 10 Energy Capacity 125 Matter Stores 231 Matter Capacity 300 Sight Range 16 Terrain Scan Density 10 Evasion (%) 42 Recoil Reduction 2 Item Schematics ----------------- None Robot Schematics ------------------ None Fabricated ------------ Nothing Alien Tech Used ----------------- None Achievements -------------- None Challenges ------------ None Game ------ Seed DispersionCoilWarhead Manual? 0 Play Time 00:23:38 Cumulative 18.7 hours Start 2024.05.08 @ 19:26:13 End 2024.05.08 @ 19:47:13 Sessions 1 Manual Loads 0 Difficulty Rogue Special Mode None Game No. 13 Rogue 12 Adventurer 1 Explorer 0 Win Type - Total 0 Types 0/0/0/0/0/0/0/0/0 Lore% 19 Gallery% 25 Achievement% 23 Wizard Run 0 Options --------- Layout 1 ASCII 0 Keyboard 0 Movement Mouse Keybinds 0 Fullscreen 1 Font 36/CogWide++ Map View 50x40 Zoom Use 0% Tactical HUD 1 Map Filters NONE Filters NONE Steam 0 RUN: 0afc8065-33cb-408f-9244-2c39250e7fc9